Cogmind - Beta 10.1 @@@ ROGUE MODE // 2020.09.27 @ 19:44:24 Player: Tone Result: Destroyed by P-60 Hacker with Shock Rifle Performance ------------- Evolutions (3) 1500 Regions Visited (13) 2600 Robots Destroyed (159) 795 Value Destroyed (3527) 3527 Prototype IDs (47) 940 Alien Tech Used (0) 0 Bonus (756) 756 TOTAL SCORE: 10118 Bonus ------- High Alert Combat Kills 47 Aligned with FarCom 300 Met Imprinter 300 Exposed GOLEM Chamber 500 Friendly Fire -391 Cogmind --------- Core Integrity 0/700 Matter 250/300 Energy 716/1100 System Corruption 0% Temperature Cool (33) Movement Walking (163) Ox1 Location -6/Proximity Caves Parts ------- > --- POWER (1) -------- Zionite Light DM Reactor > --- PROPULSION (3) --- Carbon-fiber Leg Assembled Alloy Leg Assembled Alloy Leg > --- UTILITY (6) ------ Large Storage Unit Large Storage Unit Large Storage Unit Assembled Biocell Array Zionite Heavy Carapace > --- WEAPON (3) ------- Assembled Focal Cannon Assembled Focal Cannon Assembled Focal Cannon > --- INVENTORY (22) --- Improved Treads Lightpack 2.0 Zionite Biocell (1000) Modified TNC Zionite Weapon Casing Zionite Weapon Casing Improved Powered Armor Improved Powered Armor Mobile Refinery Mk. CCLXVII Hacking Drone Bay (1/1) GOLEM Unit GOLEM Unit Phasing AFG Heavy Rocket Launcher Precision Grenade Launcher Field Lobotomy Kit Plasma Cutter Master Tearclaws Peak State ------------ > --- POWER ------------ Zionite Light DM Reactor > --- PROPULSION ------- Carbon-fiber Leg Assembled Alloy Leg Assembled Alloy Leg > --- UTILITY ---------- Lightpack 2.0 Assembled Biocell Array GOLEM Unit Phasing AFG > --- WEAPON ----------- Assembled Focal Cannon Assembled Focal Cannon Assembled Focal Cannon > --- INVENTORY -------- Advanced Heat Sink Zionite Heavy Carapace GOLEM Unit GOLEM Unit GOLEM Unit AS-neutralizer No. 17b [Rating: 120] Favorites ----------- Power Reinforced Fission Core Engine Improved Ion Engine Power Core Reinforced Fission Core Reactor Zionite Light DM Reactor Propulsion Advanced Treads Treads Advanced Treads Leg Assembled Alloy Leg Wheel Compact Wheel Hover Unit Zionite Glidesys I Utility Large Storage Unit Device Advanced Heat Sink Storage Large Storage Unit Processor Improved Signal Interpreter Protection Layered Light Armor Plating Weapon Advanced Beam Cannon Energy Gun Heavy Beamcaster Energy Cannon Advanced Beam Cannon Ballistic Gun Heavy Assault Rifle Ballistic Cannon Light Cannon Launcher Precision Grenade Launcher Special Weapon Field Lobotomy Kit Impact Weapon Power Maul Slashing Weapon Phasing Sabre Build | -11 -10 -10 -9 -9 -9 -8 -8 -7 -7 -7 -7 -7 -6 ------- Run | Scr Mat Min Mat Min Exi Min Mat Fac Low Low Zio Dee Pro Slots Evolved 6 | . . . 2 . . . 2 2 . . . . . Power . | . . . . . . . . . . . . . . Propulsion 1 | . . . 1 . . . . . . . . . . Utility 4 | . . . 1 . . . 2 1 . . . . . Weapon 1 | . . . . . . . . 1 . . . . . Parts Attached 197 | 2 9 . 31 4 19 2 9 23 14 19 30 35 . Power 9 | . . . 1 . 2 1 . 2 . 1 . 2 . Engine 5 | . . . 1 . 1 1 . 2 . . . . . Core 3 | . . . . . 1 . . . . 1 . 1 . Reactor 1 | . . . . . . . . . . . . 1 . Propulsion 40 | 1 1 . 5 . 4 1 2 6 1 7 6 6 . Treads 27 | . 1 . 4 . 4 . 2 4 1 5 6 . . Leg 3 | . . . . . . 1 . . . . . 2 . Wheel 6 | 1 . . 1 . . . . 2 . 2 . . . Hover 4 | . . . . . . . . . . . . 4 . Flight . | . . . . . . . . . . . . . . Utility 69 | 1 3 . 4 . 9 . 2 10 5 3 12 20 . Device 25 | . . . . . 2 . 1 3 4 3 8 4 . Storage 18 | 1 3 . 3 . 3 . . 3 . . . 5 . Processor 1 | . . . . . . . . 1 . . . . . Hackware . | . . . . . . . . . . . . . . Protection 25 | . . . 1 . 4 . 1 3 1 . 4 11 . Artifact . | . . . . . . . . . . . . . . Weapon 79 | . 5 . 21 4 4 . 5 5 8 8 12 7 . Energy Gun 11 | . . . 2 . . . 1 . . 1 2 5 . Energy Cannon 18 | . . . 5 . . . 2 2 5 3 . 1 . Ballistic Gun 19 | . 2 . 4 1 4 . 2 1 . 2 3 . . Ballistic Cannon 8 | . 1 . 6 1 . . . . . . . . . Launcher 15 | . 2 . 4 2 . . . 1 1 2 2 1 . Special Weapon 3 | . . . . . . . . 1 . . 2 . . Impact Weapon 3 | . . . . . . . . . 2 . 1 . . Slashing Weapon 2 | . . . . . . . . . . . 2 . . Piercing Weapon . | . . . . . . . . . . . . . . Special Melee Weapon . | . . . . . . . . . . . . . . Unidentified Prototypes 19 | . . . 2 . 3 . . 2 2 . 3 7 . Parts Lost 37 | . . . . . 10 . 2 1 2 8 9 5 . Power 3 | . . . . . . . . . . 1 1 1 . Propulsion 14 | . . . . . 5 . . . 1 2 5 1 . Utility 5 | . . . . . 2 . . . . . . 3 . Weapon 15 | . . . . . 3 . 2 1 1 5 3 . . Highest Loss Streak 10 | . . . . . 10 . 1 1 1 5 8 4 . Average Slot Usage (%) 91 | . 100 100 100 100 91 87 81 96 99 97 98 77 92 Engine 4 | . 14 14 11 11 11 11 9 7 7 1 . . . Core 2 | . . . . . . . . . . 5 6 . . Reactor 1 | . . . . . . . . . . . . 4 7 Treads 18 | . 12 14 29 33 30 22 24 20 12 17 22 6 . Leg 2 | . 1 . . . . 10 2 . . . . 4 23 Wheel 1 | . 14 14 3 . . . . 2 9 4 . . . Device 7 | . . . . . . . 7 10 5 11 13 6 . Storage 23 | . 28 28 22 33 19 22 18 22 30 28 23 22 30 Protection 6 | . . . 10 . 7 . 1 7 7 3 8 9 7 Energy Gun 2 | . . . 1 . . . 3 . . 3 3 5 . Energy Cannon 5 | . . . 7 . . . 4 21 14 8 3 5 23 Ballistic Gun 6 | . 18 14 6 16 13 22 10 . 7 4 7 . . Launcher 3 | . . . . 5 8 . . . . 4 2 4 . Naked Turns . | . . . . . . . . . . . . . . Heaviest Build 124 | 16 42 42 61 61 109 111 117 124 94 104 109 112 112 Greatest Support 85 | 20 10 10 60 60 60 40 68 72 32 73 72 85 75 Greatest Overweight (x) 5 | 1 4 4 4 1 5 2 2 2 5 5 4 3 1 Average Overweight (x) 1 | . 2 4 1 . . 2 1 1 3 1 1 2 1 Largest Inventory Capacity 42 | 8 16 16 22 22 30 30 30 42 28 28 22 30 22 Average Capacity 21 | 6 12 16 16 22 17 30 30 28 28 26 22 18 22 Most Carried 30 | 6 16 15 21 22 25 30 30 30 28 28 22 22 22 Average Carried 19 | 6 10 15 16 21 12 29 29 28 26 23 21 15 22 Final Capacity 30 | 8 16 16 22 22 30 30 30 28 28 22 22 22 22 Final Carried 30 | 6 15 15 21 22 25 30 30 28 28 21 22 22 22 Class Distribution -------------------- 49% | Hauler-Mutant 18% | Hauler-Tank 17% | Mutant 10% | Hauler-Gunner Dominant Class ---------------- Mutant | -10/Materials Mutant | -10/Mines Mutant | -9/Materials Hauler-Mutant | -9/Mines Hauler-Mutant | -9/Exiles Hauler-Mutant | -8/Mines Hauler-Mutant | -8/Materials Hauler-Tank | -7/Factory Hauler-Mutant | -7/Lower Caves Hauler-Mutant | -7/Lower Caves Hauler-Gunner | -7/Zion Hauler-Mutant | -7/Deep Caves Hauler-Mutant | -6/Proximity Caves Resources | -11 -10 -10 -9 -9 -9 -8 -8 -7 -7 -7 -7 -7 -6 ----------- Run | Scr Mat Min Mat Min Exi Min Mat Fac Low Low Zio Dee Pro Matter Collected 4101 | 238 243 . 597 144 309 366 163 243 248 368 834 348 . Remotely . | . . . . . . . . . . . . . . Salvage Created 5027 | 96 252 . 901 105 118 260 292 976 449 587 555 436 . Parts 291 | 1 22 . 66 15 5 19 13 47 15 32 53 3 . Haulers Intercepted 10 | . 2 . 4 . . . 1 2 1 . . . . Recyclers Shooed 4 | . . . 3 1 . . . . . . . . . Parts Field Recycled . | . . . . . . . . . . . . . . Retrieved Matter . | . . . . . . . . . . . . . . Parts Self-Destructed 36 | . . . . . . . . . 15 21 . . . Prevented 5 | . . . . . . . . . . 5 . . . Kills | -11 -10 -10 -9 -9 -9 -8 -8 -7 -7 -7 -7 -7 -6 ------- Run | Scr Mat Min Mat Min Exi Min Mat Fac Low Low Zio Dee Pro Combat Hostiles Destroyed 93 | . 5 . 23 8 6 7 4 10 7 14 3 6 . Melee 1 | . . . . . 1 . . . . . . . . Guns 22 | . . . 2 . 2 7 4 . 3 2 2 . . Cannons 32 | . 3 . 8 . . . . 9 4 5 1 2 . AOE 36 | . 2 . 13 8 3 . . . . 7 . 3 . Classes Destroyed 19 | 1 4 . 2 . 1 1 . 2 1 3 3 1 . Worker 3 | . . . 1 . . 1 . 1 . . . . . Builder 1 | . . . . . . . . 1 . . . . . Hauler 10 | . 2 . 4 . . . 1 2 1 . . . . Recycler 10 | 1 . . 4 1 . . . 4 . . . . . Mechanic 1 | . . . . . . . . . . 1 . . . Watcher 5 | . 1 . 2 . . . . 2 . . . . . Swarmer 32 | . 2 . 14 8 . 3 . . . 5 . . . Grunt 24 | . 3 . 5 . . 3 . 4 6 3 . . . Brawler 1 | . . . . . . . . . . 1 . . . Duelist 3 | . . . . . . . . . . 3 . . . Sentry 12 | . . . 4 . . . 4 3 . 1 . . . Hunter 1 | . . . . . . 1 . . . . . . . Programmer 4 | . . . . . . . . 3 . 1 . . . Zionite 30 | . . . . . . . . . . . 30 . . Decomposer 3 | . . . . . . . . . . 3 . . . Tinkerer 1 | . . . . . . . . . . . 1 . . Master Thief 1 | . . . . . . . . . 1 . . . . Assembled 9 | . . . . . 6 . . . . . . 3 . Golem 3 | . . . . . . . . . . . . 3 . Surgeon 1 | . . . . . . . . . . . 1 . . Butcher 1 | . . . . . . . . . . . 1 . . Mutant 1 | . . . . . . . . . . . 1 . . Best Kill Streak 9 | 1 3 . 9 5 5 3 1 3 5 6 5 3 . Combat Bots Only 7 | . 3 . 7 4 5 3 1 2 5 5 1 3 . Max Kills in Single Turn 4 | 1 1 . 3 4 3 1 1 2 1 2 2 2 . Gunslinging . | . . . . . . . . . . . . . . Exploded 4 | . 1 . 3 4 3 . . . . 2 . 2 . Melee 1 | . . . . . 1 . . . . . . . . Uniques/NPCs Destroyed 2 | . . . . . 1 . . . . . 1 . . 8R-AWN (-9/Exiles) Imprinter (-7/Zion) Combat | -11 -10 -10 -9 -9 -9 -8 -8 -7 -7 -7 -7 -7 -6 -------- Run | Scr Mat Min Mat Min Exi Min Mat Fac Low Low Zio Dee Pro Damage Taken 7655 | . 143 . 522 73 1209 344 391 631 475 1404 1718 701 44 Core 1079 | . 17 . 42 21 178 69 47 64 18 192 276 126 29 Absorbed by Shields . | . . . . . . . . . . . . . . Core Remaining (%) 76 | 100 . 93 . . . 22 91 . . . . . . Volleys Fired 413 | 7 26 . 52 5 36 19 20 49 41 40 67 42 9 Largest 3 | 2 2 . 2 1 2 2 2 3 3 3 3 2 3 Hottest 204 | 40 55 . 136 35 46 46 68 204 159 159 190 101 75 Shots Fired 843 | 14 49 . 96 5 68 38 39 140 94 92 146 46 16 Gun 451 | 14 39 . 29 1 64 38 39 3 34 48 125 17 . Cannon 337 | . 7 . 59 1 . . . 136 60 33 . 25 16 Launcher 53 | . 3 . 8 3 4 . . . . 11 20 4 . Special 2 | . . . . . . . . 1 . . 1 . . Kinetic 388 | 14 46 . 53 2 64 38 30 3 34 27 77 . . Thermal 335 | . . . 27 . . . . 136 60 26 49 21 16 Explosive 53 | . 3 . 8 3 4 . . . . 11 20 4 . Electromagnetic 53 | . . . 8 . . . 9 . . 28 . 8 . Phasic 13 | . . . . . . . . . . . . 13 . Robot Hit Streak 60 | 6 13 . 13 8 51 60 19 15 7 11 8 17 1 Robot Miss Streak 4 | 1 2 . 2 . 1 2 2 4 4 4 3 1 1 Penetration Max . | . . . . . . . . . . . . . . Secondary Targets 4 | . . . . . 2 1 . . . . 1 . . Max Gunslinging Chain 1 | . . . . . 1 1 . . . . 1 . . Shots Hit Robots 551 | 9 31 . 74 3 63 29 30 90 57 57 82 25 1 Core Hits 264 | 2 14 . 44 9 26 13 9 35 14 37 44 17 . Critical Hits 23 | . . . 5 . 1 . . 10 7 . . . . Critical Kills 8 | . . . 1 . . . . 4 3 . . . . Critical Parts Destroyed 13 | . . . 3 . . . . 6 4 . . . . Melee Attacks 135 | . . . . . . . . . 4 . 111 20 . Impact 26 | . . . . . . . . . 4 . 22 . . Slashing 109 | . . . . . . . . . . . 89 20 . Piercing . | . . . . . . . . . . . . . . Sneak Attacks . | . . . . . . . . . . . . . . Combat Hostiles . | . . . . . . . . . . . . . . Follow-up Attacks . | . . . . . . . . . . . . . . Damage Inflicted 13895 | 79 504 15 2390 450 1365 430 471 1917 1043 1767 2401 1012 51 Guns 4534 | 79 275 . 298 6 912 399 471 52 283 457 1259 43 . Cannons 4703 | . 105 . 827 19 . . . 1849 743 435 . 674 51 Explosions 4452 | . 124 . 1259 425 438 . . . . 875 1130 201 . Melee 94 | . . . . . . . . . . . . 94 . Ramming 100 | . . 15 6 . 15 31 . 16 17 . . . . Kinetic 4105 | 79 380 . 634 25 912 399 363 52 283 224 754 . . Thermal 4592 | . . . 411 . . . . 1849 743 353 517 668 51 Explosive 4392 | . 124 . 1259 425 438 . . . . 875 1130 141 . Electromagnetic 612 | . . . 80 . . . 108 . . 315 . 109 . Impact . | . . . . . . . . . . . . . . Slashing 94 | . . . . . . . . . . . . 94 . Piercing . | . . . . . . . . . . . . . . Highest Corruption 4 | . . . . . . . . 2 4 4 4 . . Average Corruption 3 | . . . . . . . . 1 3 4 4 . . Corruption Purged . | . . . . . . . . . . . . . . Effects 44 | . . . . . . . . 5 17 18 4 . . Message Errors 10 | . . . . . . . . 2 3 4 1 . . Matter Fused 5 | . . . . . . . . . 3 2 . . . Heat Flow Errors 3 | . . . . . . . . 1 . 2 . . . Energy Discharges 6 | . . . . . . . . . 3 2 1 . . Parts Rejected 1 | . . . . . . . . . 1 . . . . Data Loss (minor) 7 | . . . . . . . . 2 1 2 2 . . Targeting Errors 12 | . . . . . . . . . 6 6 . . . Overload Shots . | . . . . . . . . . . . . . . Overflow Damage 390 | . 6 . 73 . 21 . . 8 29 128 36 78 11 Projectiles 90 | . 4 . 8 . . . . 8 29 30 . . 11 Explosions 222 | . 2 . 65 . 21 . . . . 98 36 . . Melee 78 | . . . . . . . . . . . . 78 . Knockbacks 3 | . . . . . 1 1 . 1 . . . . . Impact 3 | . . . . . 1 1 . 1 . . . . . Kinetic . | . . . . . . . . . . . . . . Secondary . | . . . . . . . . . . . . . . Self-Inflicted Damage 251 | . . . 48 32 . . . . 17 73 . 81 . Shots 8 | . . . 2 2 . . . . . 2 . 2 . Rammed 11 | . . 1 1 . 6 1 . 2 . . . . . Targets Rammed 13 | . . 1 1 . 7 2 . 2 . . . . . Kicked . | . . . . . . . . . . . . . . Crushed 2 | . . . . . 1 1 . . . . . . . Highest Temperature 312 | . 38 . 312 . 38 16 . 276 282 264 174 280 33 Average Temperature 75 | . 20 . 95 . 22 6 . 84 98 126 38 71 9 Received Heat Transfer 1445 | . 60 . 150 . 20 144 126 216 225 423 9 72 . Effects 2 | . . . 1 . . . . . 1 . . . . Energy Bleed 1 | . . . . . . . . . 1 . . . . Interference 1 | . . . 1 . . . . . . . . . . Siege Activations . | . . . . . . . . . . . . . . Robots Corrupted 1 | . . . . . . . . . . . . 1 . Combat Hostiles 1 | . . . . . . . . . . . . 1 . Parts Fried 1 | . . . . . . . . . . 1 . . . Impact Corruptions . | . . . . . . . . . . . . . . Robots Melted 1 | . . . . . . . . 1 . . . . . Combat Hostiles 1 | . . . . . . . . 1 . . . . . Parts Melted 15 | . . . 1 . . . . 8 2 1 3 . . Heat Transferred 6992 | . . . 740 . . . . 3182 1332 518 795 400 25 Parts Sabotaged . | . . . . . . . . . . . . . . Parts Stolen 5 | . . . . . . . . . 2 3 . . . Parts Stripped . | . . . . . . . . . . . . . . Power Chain Reactions 1 | . . . . . . . . . . . . 1 . Missiles Intercepted . | . . . . . . . . . . . . . . Alert | -11 -10 -10 -9 -9 -9 -8 -8 -7 -7 -7 -7 -7 -6 ------- Run | Scr Mat Min Mat Min Exi Min Mat Fac Low Low Zio Dee Pro Peak Influence 598 | 5 172 66 598 361 . 160 152 172 . . . . . Initial 176 | . 3 66 25 176 . . . 3 . . . . . Average 129 | 1 108 66 317 232 . 55 46 63 . . . . . Maximum Alert Level 2 | . . . 2 1 . . . . . . . . . Low Security (%) 81 | 100 100 100 23 57 . 100 100 100 . . . . . Level 1 12 | . . . 43 42 . . . . . . . . . Level 2 5 | . . . 32 . . . . . . . . . . Level 3 . | . . . . . . . . . . . . . . Level 4 . | . . . . . . . . . . . . . . Level 5 . | . . . . . . . . . . . . . . High Security . | . . . . . . . . . . . . . . Max Security . | . . . . . . . . . . . . . . Squads Dispatched 7 | . 1 . 1 . . . . 4 . 1 . . . Investigation . | . . . . . . . . . . . . . . Extermination 3 | . . . . . . . . 3 . . . . . Reinforcement 2 | . 1 . . . . . . 1 . . . . . Assault 2 | . . . 1 . . . . . . 1 . . . Garrison . | . . . . . . . . . . . . . . Intercept . | . . . . . . . . . . . . . . Construction Impeded . | . . . . . . . . . . . . . . Haulers Reinforced 1 | . . . . . . . . 1 . . . . . Stealth | -11 -10 -10 -9 -9 -9 -8 -8 -7 -7 -7 -7 -7 -6 --------- Run | Scr Mat Min Mat Min Exi Min Mat Fac Low Low Zio Dee Pro Distress Signals 5 | . 2 . 3 . . . . . . . . . . Communications Jammed . | . . . . . . . . . . . . . . Distress Signals . | . . . . . . . . . . . . . . Times Spotted 164 | . 9 2 31 8 7 7 4 16 11 23 40 5 1 Peak Tracking Total 10 | . 3 2 5 4 8 3 2 2 5 10 6 2 1 Tactical Retreats 14 | . 2 . 2 . . . . 1 2 3 4 . . Traps | -11 -10 -10 -9 -9 -9 -8 -8 -7 -7 -7 -7 -7 -6 ------- Run | Scr Mat Min Mat Min Exi Min Mat Fac Low Low Zio Dee Pro Traps Triggered 1 | . . . . . . . . 1 . . . . . Indirectly . | . . . . . . . . . . . . . . Trap Hack Attempts . | . . . . . . . . . . . . . . Triggered . | . . . . . . . . . . . . . . Disarmed . | . . . . . . . . . . . . . . Reprogrammed . | . . . . . . . . . . . . . . Reused . | . . . . . . . . . . . . . . Traps Extracted . | . . . . . . . . . . . . . . Installed . | . . . . . . . . . . . . . . Triggered 1 | . . . . . . . . . 1 . . . . Machines | -11 -10 -10 -9 -9 -9 -8 -8 -7 -7 -7 -7 -7 -6 ---------- Run | Scr Mat Min Mat Min Exi Min Mat Fac Low Low Zio Dee Pro Machines Disabled 14 | . . . 6 . 2 . . . . 2 1 3 . Max in Single Turn 3 | . . . 3 . 1 . . . . 1 . 1 . Garrison Access 1 | . . . . . . . . 1 . . . . . Machines Sabotaged . | . . . . . . . . . . . . . . Garrisons Compromised . | . . . . . . . . . . . . . . Overloaded Fab Kills . | . . . . . . . . . . . . . . Fab Network Shutdowns . | . . . . . . . . . . . . . . Hacking | -11 -10 -10 -9 -9 -9 -8 -8 -7 -7 -7 -7 -7 -6 --------- Run | Scr Mat Min Mat Min Exi Min Mat Fac Low Low Zio Dee Pro Machines Accessed 9 | . 2 . 1 . 2 . 2 2 . . . . . Terminals 6 | . 2 . 1 . . . 2 1 . . . . . Fabricators . | . . . . . . . . . . . . . . Repair Stations . | . . . . . . . . . . . . . . Recycling Units . | . . . . . . . . . . . . . . Scanalyzers . | . . . . . . . . . . . . . . Garrison Access 1 | . . . . . . . . 1 . . . . . Total Hacks 28 | . 5 . 5 . 2 . 10 6 . . . . . Successful 16 | . 3 . 3 . 2 . 5 3 . . . . . Failed 12 | . 2 . 2 . . . 5 3 . . . . . Catastrophic 4 | . 1 . . . . . 2 1 . . . . . Database Lockouts . | . . . . . . . . . . . . . . Manual 21 | . 5 . 5 . 1 . 5 4 . . 1 . . Terminals 24 | . 5 . 5 . . . 10 4 . . . . . Fabricators . | . . . . . . . . . . . . . . Repair Stations . | . . . . . . . . . . . . . . Recycling Units . | . . . . . . . . . . . . . . Scanalyzers . | . . . . . . . . . . . . . . Garrison Access 2 | . . . . . . . . 2 . . . . . Terminal Hacks 8 | . 1 . 2 . 2 . 3 . . . . . . Record 1 | . . . . . 1 . . . . . . . . Robot Analysis 1 | . . . 1 . . . . . . . . . . Branch Access Points 2 | . 1 . 1 . . . . . . . . . . Unreport Threat 3 | . . . . . . . 3 . . . . . . EX-Prototype ID Bank 1 | . . . . . 1 . . . . . . . . Fabricator Hacks . | . . . . . . . . . . . . . . Repair Station Hacks . | . . . . . . . . . . . . . . Recycling Unit Hacks . | . . . . . . . . . . . . . . Scanalyzer . | . . . . . . . . . . . . . . Garrison Access Hacks 1 | . . . . . . . . 1 . . . . . Seal Access 1 | . . . . . . . . 1 . . . . . Unauthorized Hacks 7 | . 2 . 1 . . . 2 2 . . . . . Terminals 7 | . 2 . 1 . . . 2 2 . . . . . Track 6 | . 2 . 1 . . . 2 1 . . . . . Botnet 1 | . . . . . . . . 1 . . . . . Fabricators . | . . . . . . . . . . . . . . Repair Stations . | . . . . . . . . . . . . . . Recycling Units . | . . . . . . . . . . . . . . Scanalyzers . | . . . . . . . . . . . . . . Garrison Access . | . . . . . . . . . . . . . . Data Cores Recovered . | . . . . . . . . . . . . . . Used . | . . . . . . . . . . . . . . Hacking Detections 6 | . 2 . 1 . . . 2 1 . . . . . Full Trace Events . | . . . . . . . . . . . . . . Feedback Events . | . . . . . . . . . . . . . . Feedback Blocked . | . . . . . . . . . . . . . . Robot Schematics Acquired . | . . . . . . . . . . . . . . Robots Built . | . . . . . . . . . . . . . . Matter . | . . . . . . . . . . . . . . Time . | . . . . . . . . . . . . . . Total Robot Build Rating . | . . . . . . . . . . . . . . Part Schematics Acquired . | . . . . . . . . . . . . . . Parts Built . | . . . . . . . . . . . . . . Matter . | . . . . . . . . . . . . . . Time . | . . . . . . . . . . . . . . Total Part Build Rating . | . . . . . . . . . . . . . . Parts Repaired . | . . . . . . . . . . . . . . Time . | . . . . . . . . . . . . . . Parts Recycled . | . . . . . . . . . . . . . . Recycled Matter . | . . . . . . . . . . . . . . Retrieved Matter . | . . . . . . . . . . . . . . Retrieved Components . | . . . . . . . . . . . . . . Parts Scanalyzed . | . . . . . . . . . . . . . . Part Schematics Acquired . | . . . . . . . . . . . . . . Parts Damaged . | . . . . . . . . . . . . . . Bothacking | -11 -10 -10 -9 -9 -9 -8 -8 -7 -7 -7 -7 -7 -6 ------------ Run | Scr Mat Min Mat Min Exi Min Mat Fac Low Low Zio Dee Pro Used RIF Installer . | . . . . . . . . . . . . . . Robots Hacked 1 | . . . . . . . . 1 . . . . . Non-combat 1 | . . . . . . . . 1 . . . . . Combat . | . . . . . . . . . . . . . . Robot Hacks Applied 1 | . . . . . . . . 1 . . . . . find_chute 1 | . . . . . . . . 1 . . . . . Relay Couplers Released . | . . . . . . . . . . . . . . Robots Rewired 2 | . . . . . . . . . . 2 . . . Allies Hacked . | . . . . . . . . . . . . . . Hacks Repelled . | . . . . . . . . . . . . . . Allies | -11 -10 -10 -9 -9 -9 -8 -8 -7 -7 -7 -7 -7 -6 -------- Run | Scr Mat Min Mat Min Exi Min Mat Fac Low Low Zio Dee Pro Total Allies 4 | . . . . . . . . . . 2 2 . . Largest Group 2 | . . . . . . . . . . 2 2 . . Highest-Rated Group 188 | . . . . . . . . . . 46 188 . . Highest-Rated Ally 94 | . . . . . . . . . . 30 94 . . Total Orders . | . . . . . . . . . . . . . . Ally Attacks 110 | . . . . . . . . . . 13 97 . . Total Damage 2431 | . . . . . . . . . . 157 2274 . . Kills 14 | . . . . . . . . . . . 14 . . Allies Corrupted . | . . . . . . . . . . . . . . Allies Melted . | . . . . . . . . . . . . . . Intel | -11 -10 -10 -9 -9 -9 -8 -8 -7 -7 -7 -7 -7 -6 ------- Run | Scr Mat Min Mat Min Exi Min Mat Fac Low Low Zio Dee Pro Robot Analysis Total 1 | . . . 1 . . . . . . . . . . Derelict Logs Recovered 4 | . . 1 . 2 . . . . . . 1 . . Drone Launches . | . . . . . . . . . . . . . . Drone Recoveries . | . . . . . . . . . . . . . . Exploration | -11 -10 -10 -9 -9 -9 -8 -8 -7 -7 -7 -7 -7 -6 ------------- Run | Scr Mat Min Mat Min Exi Min Mat Fac Low Low Zio Dee Pro Turns Passed 16429 | 38 381 167 832 513 1773 922 331 1332 523 521 4744 4220 132 Spaces Moved 7827 | 13 247 131 388 294 954 427 132 628 260 233 2384 1670 66 Core . | . . . . . . . . . . . . . . Treads 6421 | . . . 220 294 954 427 132 503 . 147 2384 1360 . Legs 388 | 12 . . . . . . . . . . . 310 66 Wheels 1018 | 1 247 131 168 . . . . 125 260 86 . . . Hover . | . . . . . . . . . . . . . . Flight . | . . . . . . . . . . . . . . Fastest Speed 90 | 90 90 120 120 160 160 200 180 120 120 120 165 140 163 Average Speed 171 | 117 108 120 144 166 165 200 184 162 138 151 166 205 163 Slowest Speed 260 | 120 120 120 180 180 260 200 200 180 150 220 240 220 163 Overloaded Moves . | . . . . . . . . . . . . . . Propulsion Burnouts . | . . . . . . . . . . . . . . Robots Hopped . | . . . . . . . . . . . . . . Cave-ins Triggered . | . . . . . . . . . . . . . . Exploration Rate (%) 47 | 3 57 27 50 62 68 76 15 19 48 50 87 83 22 Regions Visited 13 Branch Regions 9 Pre-discovered Areas 5 | . . 1 . . 1 . . . . . 3 . . Known Exits Taken 4 | . 1 . 1 . . 1 . 1 . . . . . Unknown Exits Taken 9 | 1 . 1 . 1 1 . 1 . 1 1 1 1 . Scrap Searched 5 | . . . . 1 . 1 . . 1 . 2 . . Spaces Dug 93 | . . . . 12 . . . . 4 37 4 23 13 Terrain Destroyed 319 | . 20 . 40 21 18 . . . 4 106 35 60 15 Melee 18 | . . . . . . . . . 3 . 4 11 . Projectile 32 | . . . . . . . . . 1 2 1 13 15 AOE 269 | . 20 . 40 21 18 . . . . 104 30 36 . Terrain Rammed 1 | . . . . . . . . . 1 . . . . Walls Destroyed . | . . . . . . . . . . . . . . Machines Disabled . | . . . . . . . . . . . . . . Actions | -11 -10 -10 -9 -9 -9 -8 -8 -7 -7 -7 -7 -7 -6 --------- Run | Scr Mat Min Mat Min Exi Min Mat Fac Low Low Zio Dee Pro Total 9910 | 21 314 140 564 311 1083 455 182 834 336 326 2870 2399 75 Wait 975 | . 16 9 56 5 . 1 9 86 . 1 249 543 . Move 7814 | 12 246 130 387 293 953 426 131 627 259 232 2383 1669 66 Hop . | . . . . . . . . . . . . . . Pick Up 174 | . 11 . 18 2 42 5 7 24 10 8 13 34 . Fast Attach 58 | 1 1 . 3 1 11 . 2 7 3 3 7 19 . Attach 53 | . 1 . 4 . 7 1 3 7 3 9 4 14 . Detach 22 | . . . 3 . 3 . . 1 . 1 3 11 . Swap 86 | 1 7 . 24 3 1 1 4 9 8 7 19 2 . Drop 148 | . 6 . 16 2 23 . 6 22 7 7 14 45 . Fire 413 | 7 26 . 52 5 36 19 20 49 41 40 67 42 9 Melee 135 | . . . . . . . . . 4 . 111 20 . Ram 1 | . . . . . . . . . 1 . . . . Kick . | . . . . . . . . . . . . . . Crush 13 | . . 1 1 . 7 2 . 2 . . . . . Escape Stasis . | . . . . . . . . . . . . . . Rewire 18 | . . . . . . . . . . 18 . . . Trap . | . . . . . . . . . . . . . . Miscellaneous . | . . . . . . . . . . . . . . Route ------- -11/Scrapyard -10/Materials (discovered 2 exits: *Mat / *Min) -10/Mines -9/Materials (discovered 2 exits: *Mat / *Min) -9/Mines (discovered 3 exits: *Mat x2 / *Exi) -9/Exiles -8/Mines -8/Materials -7/Factory (discovered 2 exits: [*Fac] / *Low) -7/Lower Caves -7/Lower Caves -7/Zion (discovered 2 exits: [*Dee] / [*Pro]) -7/Deep Caves -6/Proximity Caves History --------- Turn | Location | Event 1 | -11/Scrapyard | Discovered new exit (range 3) 39 | -11/Scrapyard | Entered Materials 271 | -10/Materials | Discovered new exit (range 16) 308 | -10/Materials | Build established: Mutant 379 | -10/Materials | Identified exit to Mines 420 | -10/Materials | Entered Mines 490 | -10/Mines | Discovered new exit (range 7) 587 | -10/Mines | Entered Materials 587 | -9/Materials | Evolved 2 slots: Propulsion x1, Utility x1 843 | -9/Materials | Discovered new exit (range 15) 913 | -9/Materials | Identified exit to Mines 1344 | -9/Materials | Destroyed 7 combat bots 1387 | -9/Materials | First assault squad dispatched 1419 | -9/Materials | Entered Mines 1673 | -9/Mines | Identified exit to Materials 1729 | -9/Mines | Learned Materials stockpile data 1729 | -9/Mines | Discovered exit to Materials (range 5) 1925 | -9/Mines | Deemed a non-threat by the Exiles lab entrance 1925 | -9/Mines | Discovered new exit (range 5) 1932 | -9/Mines | Entered Exiles 1998 | -9/Exiles | Build established: Hauler-Mutant 2036 | -9/Exiles | Met 8R-AWN 2061 | -9/Exiles | Met EX-HEX 2144 | -9/Exiles | Met EX-DEC 2228 | -9/Exiles | Learned location of Zion (-7) 2275 | -9/Exiles | Met EX-BIN 2352 | -9/Exiles | Aligned with FarCom system 2353 | -9/Exiles | Given EX-Vault access code 2390 | -9/Exiles | Opened EX-Vault 2428 | -9/Exiles | Warned to stay clear of 0b10 Research branches 2540 | -9/Exiles | Discovered new exit (range 15) 3060 | -9/Exiles | Found Field Lobotomy Kit 3065 | -9/Exiles | Found Modified TNC 3070 | -9/Exiles | Found Supersonic Drone Bay 3136 | -9/Exiles | Build established: Mutant 3354 | -9/Exiles | Attacked by the Exiles 3451 | -9/Exiles | Core integrity fell below 50% 3473 | -9/Exiles | Destroyed 8R-AWN 3480 | -9/Exiles | Found Prototype Device 3480 | -9/Exiles | Identified AS-neutralizer No. 17b 3492 | -9/Exiles | Found Prototype Protection 3492 | -9/Exiles | Identified 8R-AWN's Armor/EX 3502 | -9/Exiles | Lost 10 parts (5n2u3w) 3705 | -9/Exiles | Stole two prototypes: Field Lobotomy Kit, Modified TNC 3705 | -9/Exiles | Entered Mines 3845 | -8/Mines | Build established: Hauler-Mutant 4613 | -8/Mines | Discovered exit to Materials (range 8) 4627 | -8/Mines | Entered Materials 4627 | -8/Materials | Evolved 2 slots: Utility x2 4890 | -8/Materials | Discovered new exit (range 10) 4958 | -8/Materials | Entered Factory 4958 | -7/Factory | Evolved 2 slots: Utility x1, Weapon x1 5288 | -7/Factory | Build established: Hauler-Tank 5731 | -7/Factory | Discovered new exit (range 8) 6052 | -7/Factory | Discovered new exit (range 4) 6255 | -7/Factory | Identified exit to Lower Caves 6290 | -7/Factory | Entered Lower Caves 6291 | -7/Lower Caves | Encountered a Warlord checkpoint 6306 | -7/Lower Caves | Spotted B-75 Beast 6666 | -7/Lower Caves | Build established: Hauler-Mutant 6692 | -7/Lower Caves | Spotted ZR-25V(f) 6693 | -7/Lower Caves | Encountered a Master Thief 6694 | -7/Lower Caves | 8R-AWN's Armor/EX stolen by Master Thief 6723 | -7/Lower Caves | Found Imp. Powered Armor 6725 | -7/Lower Caves | Found Imp. Powered Armor 6745 | -7/Lower Caves | Spotted HQ-1TP(f) 6746 | -7/Lower Caves | Encountered a Master Thief 6747 | -7/Lower Caves | Shock Rifle stolen by Master Thief 6748 | -7/Lower Caves | Spotted DU-A3Y(f) 6750 | -7/Lower Caves | Encountered a Master Thief 6757 | -7/Lower Caves | Destroyed DU-A3Y(f) 6799 | -7/Lower Caves | Discovered new exit (range 8) 6813 | -7/Lower Caves | Entered another Lower Caves area 6929 | -7/Lower Caves | Attracted the attention of an 0b10 outpost 6973 | -7/Lower Caves | Build established: Hauler-Tank 6984 | -7/Lower Caves | Lost 5 parts (1p1n3w) 7168 | -7/Lower Caves | Spotted 31-K5R(f) 7169 | -7/Lower Caves | Encountered a Master Thief 7169 | -7/Lower Caves | Spotted JT-8SN(f) 7170 | -7/Lower Caves | Encountered a Master Thief 7173 | -7/Lower Caves | Adv. Weapon Cycler stolen by Master Thief 7174 | -7/Lower Caves | Exp. Heat Sink stolen by Master Thief 7219 | -7/Lower Caves | Spotted A2-JDN(f) 7220 | -7/Lower Caves | Encountered a Master Thief 7238 | -7/Lower Caves | Lrg. Storage Unit stolen by Master Thief 7239 | -7/Lower Caves | Encountered a Warlord checkpoint 7296 | -7/Lower Caves | Build established: Hauler-Mutant 7309 | -7/Lower Caves | Discovered new exit (range 15) 7334 | -7/Lower Caves | Entered Zion 7334 | -7/Zion | Accompanied by 2 allies 7357 | -7/Zion | Given A8's code to call for help 7438 | -7/Zion | System corruption cleaned by Quarantine Array 7461 | -7/Zion | Learned location of Quarantine (-3) 7559 | -7/Zion | Discovered new exit (range 11) 7662 | -7/Zion | Build established: Hauler-Gunner 7785 | -7/Zion | Learned location of Recycling (-7) 7829 | -7/Zion | Learned Factory emergency access door positions 7895 | -7/Zion | Received a visual enhancement algorithm 7943 | -7/Zion | Found Prototype Device 7943 | -7/Zion | Identified Phasing AFG 8030 | -7/Zion | Found Prototype Device 8587 | -7/Zion | Given the Hacking Drone Bay 8588 | -7/Zion | Found Prototype Device 9239 | -7/Zion | Discovered new exit (range 4) 9438 | -7/Zion | Build established: Hauler-Mutant 9491 | -7/Zion | Identified Mobile Refinery Mk. CCLXVII 9493 | -7/Zion | Identified Hacking Drone Bay 9758 | -7/Zion | Saw the warning signs outside the Deep Caves entrance 9787 | -7/Zion | Build established: Hauler-Tank 10828 | -7/Zion | Build established: Hauler-Mutant 11093 | -7/Zion | Attacked by Zionites 11429 | -7/Zion | Destroyed Imprinter 11434 | -7/Zion | Extracted access codes from Imprinter's data core 11501 | -7/Zion | Enhanced Grunt warped into view, answering call for help 11504 | -7/Zion | Enhanced Grunt warped into view, answering call for help 11799 | -7/Zion | Build established: Hauler-Tank 12017 | -7/Zion | P1-3CE came to Zion's defense 12021 | -7/Zion | Core integrity fell below 50% 12078 | -7/Zion | Entered Deep Caves 12080 | -7/Deep Caves | Lost 8 parts (1p4n3w) 12316 | -7/Deep Caves | Build established: Hauler-Mutant 12511 | -7/Deep Caves | Z-Facility disabled 13087 | -7/Deep Caves | Discovered new exit (range 5) 13240 | -7/Deep Caves | Found Surveybot 24 Scanner 13243 | -7/Deep Caves | Found Surveybot 24 Chip 13583 | -7/Deep Caves | Found Prototype Protection 13583 | -7/Deep Caves | Identified Zio. Weapon Casing 13661 | -7/Deep Caves | Found Prototype Protection 13661 | -7/Deep Caves | Identified Zio. Heavy Carapace 14432 | -7/Deep Caves | Found Zio. Heavy Carapace 14435 | -7/Deep Caves | Found Zio. Weapon Casing 14859 | -7/Deep Caves | Found Lightpack 2.0 15009 | -7/Deep Caves | Build established: Mutant 15118 | -7/Deep Caves | Spotted as-04024 15121 | -7/Deep Caves | Core integrity fell below 20% 15151 | -7/Deep Caves | Destroyed as-04024 15161 | -7/Deep Caves | Found GOLEM Unit 15181 | -7/Deep Caves | Lost 4 parts (1n3u) 15980 | -7/Deep Caves | Exposed GOLEM chamber 15984 | -7/Deep Caves | Found GOLEM Unit 16002 | -7/Deep Caves | Found GOLEM Unit 16059 | -7/Deep Caves | Found GOLEM Unit 16193 | -7/Deep Caves | Build established: Hauler-Mutant 16298 | -7/Deep Caves | Entered Proximity Caves 16430 | -6/Proximity Caves | Destroyed by P-60 Hacker with Shock Rifle Last Messages --------------- 16197_ Acquired Field Lobotomy Kit. 16205_ Acquired Modified TNC. 16211_ Acquired Hacking Drone Bay. 16215_ Acquired Mobile Refinery Mk. CCLXVII. 16234_ Acquired Lightpack 2.0. 16251_ Acquired Imp. Powered Armor. 16252_ Dropped Carbon-fiber Leg. 16256_ Acquired Carbon-fiber Leg. 16257_ Discarded GOLEM Unit. 16265_ Acquired Plasma Cutter. 16269_ Acquired Imp. Powered Armor. 16277_ Acquired Prc. Grenade Launcher. 16281_ Dropped Imp. Powered Armor. 16282_ Acquired Master Tearclaws. 16289_ Dropped GOLEM Unit. 16290_ Acquired Hvy. Rocket Launcher. 16297_ Acquired Imp. Powered Armor. LOCATION=UNKNOWN GOAL=ESCAPE 16427_ Destroyed Imp. Heat Sink. Map ----- +----------------------------------------------------+ | ?????????????????????????????????????????????????? | | ?????????????????????????????????????????????????? | | ?????????????????????????????????????????????????? | | ?????????????????????????????????????????????????? | | ?????????????????????????????????????????????????? | | ?????????????????????????????????????????????????? | | ?????????????????????????????????????????????????? | | ?????????????????????????????????????????????????? | | ?????????????????????????????????????????????????? | | ?????????????????????????????????????????????????? | | ?????????????????????????????????????????????????? | | ????????????????????????????? ???????????????????? | | ????????????????????? ??????? ????????????????? | | ???????????????? ??? ????### #????????????????? | | ??????????????## ### ???? ##???????????????? | | ??????????????# ??? #???????????????? | | ??????????????# ??? ????????????????? | | ??????????????# ??? #????????????????? | | ???????????????? ??? ##???????????????? | | ???????????????? ### ##??????????????? | | ????????????????? #??????????????? | | ????????????????? p ???????????????? | | ????????????????? ?????????????????? | | ?????????????????# ? ;#??????????????????? | | ?????????????????# ??# ;#??????????????????? | | ?????????????????# ####;@ #???????????????????? | | ?????????????????# ## ;;#####???????????????????? | | ?????????????????# # ##???????????????????????? | | ?????????????????# ##???????????????????????? | | ????????????????## "#####???????????????????? | | ???????????????## #???????????????????? | | ???????????????# #???????????????????? | | ??????????????## ## #???????????????????? | | ??????????????# #? #???????????????????? | | ??????????????## ## #?? #???????????????????? | | ???????????????# ######? ??#???????????????????? | | ?????????????### #?????? ?????????????????????? | | ?????????##??# #?????? #???????????????????? | | ????????# #??# ##????? ??????????????????? | | ??????##"#???# ##????# #?????????????????? | | ????### ###### ##????# ## ##?????????????????? | | ???## ##"### #?????##? #??????????????????? | | #### " "# #?????????#??????????????????? | | #"# ### ##????????????????????????????? | | "# ## ##?????????????????????????????? | | # ## #??????????????????????????????? | | ## ### ##??????????????????????????????? | | ### #?## #???????????????????????????????? | | ####?# #??# #???????????????????????????????? | | # #????# #??# ???????????????????????????????? | +----------------------------------------------------+ Best States ------------- Heat Dissipation 79 Energy Generation 27 Energy Capacity 1100 Matter Stores 300 Matter Capacity 300 Sight Range 16 Terrain Scan Density 10 Additional Mass Support 10 Armor Coverage 1600 Weapon Shielding 100 Evasion (%) 42 Recoil Reduction 3 Item Schematics ----------------- None Robot Schematics ------------------ None Fabricated ------------ Nothing Alien Tech Used ----------------- None Achievements -------------- None Challenges ------------ None Game ------ Seed IonicShadingBeamcaster Manual? 0 Play Time 02:14:37 Cumulative 396.0 hours Start 2020.09.27 @ 14:01:18 End 2020.09.27 @ 19:44:24 Sessions 5 Manual Loads 0 Difficulty Rogue Special Mode None Game No. 54 Rogue 54 Adventurer 0 Explorer 0 Win Type - Total 20 Types 10/4/1/0/2/0/3/0/0 Lore% 87 Gallery% 93 Achievement% 79 Wizard Run 0 Options --------- ASCII 0 Keyboard 0 Movement Numpad Keybinds 0 Fullscreen 2 Font 18/Terminus Map View 76x50 Tactical HUD 1 Map Filters NONE Filters NONE Steam 1 RUN: 70ffcae5-3e66-4814-a9e8-43ba702695fe